{"text_format":"3","workbook":"xlsx","n_sheets":1,"sheets":["Mesečni porodični budžet"],"read":"whole","date_system":"1900"}

{"sheet":"Mesečni porodični budžet","index":0,"n_rows":67,"n_cols":10,"rows_kept":67}
[null,"Mesečni porodični budžet"]
[null,"Tabela sa rezimeom","Ukupno\nPredviđeni trošak","Ukupno\nStvarni trošak","Ukupno\nRazlika",null,"Predviđeni mesečni izvor prihoda","Iznos"]
[null,null,{"$f":"Domaćinstvo[[#Totals],[Predviđeni\nTrošak]]+Prevoz[[#Totals],[Predviđeni\nTrošak]]+Osiguranje[[#Totals],[Predviđeni\nTrošak]]+Hrana[[#Totals],[Predviđeni\nTrošak]]+Deca[[#Totals],[Predviđeni\nTrošak]]+Pravni_aspekti[[#Totals],[Predviđeni\nTrošak]]+Štednja[[#Totals],[Predviđeni\nTrošak]]+Zajmovi[[#Totals],[Predviđeni\nTrošak]]+Zabava[[#Totals],[Predviđeni\nTrošak]]+Porezi[[#Totals],[Predviđeni \nTrošak]]+LičnaNega[[#Totals],[Predviđeni\nTrošak]]+Ljubimci[[#Totals],[Predviđeni\nTrošak]]+Pokloni[[#Totals],[Predviđeni\nTrošak]]","v":{"v":1203,"d":"1,203 RSD"}},{"$f":"Domaćinstvo[[#Totals],[Stvarni\nTrošak]]+Prevoz[[#Totals],[Stvarni\nTrošak]]+Osiguranje[[#Totals],[Stvarni\nTrošak]]+Hrana[[#Totals],[Stvarni\nTrošak]]+Deca[[#Totals],[Stvarni\nTrošak]]+Pravni_aspekti[[#Totals],[Stvarni\nTrošak]]+Štednja[[#Totals],[Stvarni\nTrošak]]+Zajmovi[[#Totals],[Stvarni\nTrošak]]+Zabava[[#Totals],[Stvarni\nTrošak]]+Porezi[[#Totals],[Stvarni \nTrošak]]+LičnaNega[[#Totals],[Stvarni\nTrošak]]+Ljubimci[[#Totals],[Stvarni\nTrošak]]+Pokloni[[#Totals],[Stvarni\nTrošak]]","v":{"v":1317,"d":"1,317 RSD"}},{"$f":"Domaćinstvo[[#Totals],[Razlika]]+Prevoz[[#Totals],[Razlika]]+Osiguranje[[#Totals],[Razlika]]+Hrana[[#Totals],[Razlika]]+Deca[[#Totals],[Razlika]]+Pravni_aspekti[[#Totals],[Razlika]]+Štednja[[#Totals],[Razlika]]+Zajmovi[[#Totals],[Razlika]]+Zabava[[#Totals],[Razlika]]+Porezi[[#Totals],[Razlika]]+LičnaNega[[#Totals],[Razlika]]+Ljubimci[[#Totals],[Razlika]]+Pokloni[[#Totals],[Razlika]]","v":{"v":-114,"d":"-114 RSD"}},null,"Prihod 1",{"v":4000,"d":"4,000 RSD"}]
[{"$nulls":6},"Prihod 2",{"v":1200,"d":"1,200 RSD"}]
[null,"Domaćinstvo","Predviđeni\nTrošak","Stvarni\nTrošak","Razlika",null,"Dodatni prihod",{"v":300,"d":"300 RSD"}]
[null,"Hipoteka ili izdavanje",{"v":1000,"d":"1,000 RSD"},{"v":1000,"d":"1,000 RSD"},{"$f":"Domaćinstvo[Predviđeni\nTrošak]-Domaćinstvo[Stvarni\nTrošak]","v":{"v":0,"d":"0 RSD"}},null,"Ukupan mesečni prihod",{"$f":"SUM(H3:H5)","v":{"v":5500,"d":"5,500 RSD"}}]
[null,"Druga hipoteka ili izdavanje",{"v":0,"d":"0 RSD"},{"v":0,"d":"0 RSD"},{"$f":"Domaćinstvo[Predviđeni\nTrošak]-Domaćinstvo[Stvarni\nTrošak]","v":{"v":0,"d":"0 RSD"}}]
[null,"Telefon",{"v":62,"d":"62 RSD"},{"v":100,"d":"100 RSD"},{"$f":"Domaćinstvo[Predviđeni\nTrošak]-Domaćinstvo[Stvarni\nTrošak]","v":{"v":-38,"d":"-38 RSD"}},null,"Stvarni mesečni izvor prihoda","Iznos"]
[null,"Struja",{"v":44,"d":"44 RSD"},{"v":125,"d":"125 RSD"},{"$f":"Domaćinstvo[Predviđeni\nTrošak]-Domaćinstvo[Stvarni\nTrošak]","v":{"v":-81,"d":"-81 RSD"}},null,"Prihod 1",{"v":4000,"d":"4,000 RSD"}]
[null,"Gas",{"v":22,"d":"22 RSD"},{"v":35,"d":"35 RSD"},{"$f":"Domaćinstvo[Predviđeni\nTrošak]-Domaćinstvo[Stvarni\nTrošak]","v":{"v":-13,"d":"-13 RSD"}},null,"Prihod 2",{"v":1200,"d":"1,200 RSD"}]
[null,"Voda i kanalizacija",{"v":8,"d":"8 RSD"},{"v":8,"d":"8 RSD"},{"$f":"Domaćinstvo[Predviđeni\nTrošak]-Domaćinstvo[Stvarni\nTrošak]","v":{"v":0,"d":"0 RSD"}},null,"Dodatni prihod",{"v":300,"d":"300 RSD"}]
[null,"Kablovska televizija",{"v":34,"d":"34 RSD"},{"v":39,"d":"39 RSD"},{"$f":"Domaćinstvo[Predviđeni\nTrošak]-Domaćinstvo[Stvarni\nTrošak]","v":{"v":-5,"d":"-5 RSD"}},null,"Ukupan mesečni prihod",{"$f":"SUM(H9:H11)","v":{"v":5500,"d":"5,500 RSD"}}]
[null,"Uklanjanje otpada",{"v":10,"d":"10 RSD"},{"v":10,"d":"10 RSD"},{"$f":"Domaćinstvo[Predviđeni\nTrošak]-Domaćinstvo[Stvarni\nTrošak]","v":{"v":0,"d":"0 RSD"}}]
[null,"Održavanje ili popravke",{"v":23,"d":"23 RSD"},{"v":0,"d":"0 RSD"},{"$f":"Domaćinstvo[Predviđeni\nTrošak]-Domaćinstvo[Stvarni\nTrošak]","v":{"v":23,"d":"23 RSD"}},null,"Bilans","Iznos"]
[null,"Pribor",{"v":0,"d":"0 RSD"},{"v":0,"d":"0 RSD"},{"$f":"Domaćinstvo[Predviđeni\nTrošak]-Domaćinstvo[Stvarni\nTrošak]","v":{"v":0,"d":"0 RSD"}},null,"Predviđeni bilans",{"$f":"SUM(H6-'Mesečni porodični budžet'!$C$3:$C$3)","v":{"v":4297,"d":"4,297 RSD"}}]
[null,"Drugo",{"v":0,"d":"0 RSD"},{"v":0,"d":"0 RSD"},{"$f":"Domaćinstvo[Predviđeni\nTrošak]-Domaćinstvo[Stvarni\nTrošak]","v":{"v":0,"d":"0 RSD"}},null,"Stvarni bilans",{"$f":"SUM(H12-D3)","v":{"v":4183,"d":"4,183 RSD"}}]
[null,"Zbir",{"$f":"SUBTOTAL(109,Domaćinstvo[Predviđeni\nTrošak])","v":{"v":1203,"d":"1,203 RSD"}},{"$f":"SUBTOTAL(109,Domaćinstvo[Stvarni\nTrošak])","v":{"v":1317,"d":"1,317 RSD"}},{"$f":"SUBTOTAL(109,Domaćinstvo[Razlika])","v":{"v":-114,"d":"-114 RSD"}},null,"Razlika",{"$f":"SUM(H16-H15)","v":{"v":-114,"d":"-114 RSD"}}]
[]
[null,"Prevoz","Predviđeni\nTrošak","Stvarni\nTrošak","Razlika",null,"Zajmovi","Predviđeni\nTrošak","Stvarni\nTrošak","Razlika"]
[null,"Plaćanje 1. vozila",null,null,{"$f":"Prevoz[Predviđeni\nTrošak]-Prevoz[Stvarni\nTrošak]","v":{"v":0,"d":"0 RSD"}},null,"Lični",null,null,{"$f":"Zajmovi[Predviđeni\nTrošak]-Zajmovi[Stvarni\nTrošak]","v":{"v":0,"d":"0 RSD"}}]
[null,"Plaćanje 2. vozila",null,null,{"$f":"Prevoz[Predviđeni\nTrošak]-Prevoz[Stvarni\nTrošak]","v":{"v":0,"d":"0 RSD"}},null,"Studentski",null,null,{"$f":"Zajmovi[Predviđeni\nTrošak]-Zajmovi[Stvarni\nTrošak]","v":{"v":0,"d":"0 RSD"}}]
[null,"Naknada za autobus/taksi",null,null,{"$f":"Prevoz[Predviđeni\nTrošak]-Prevoz[Stvarni\nTrošak]","v":{"v":0,"d":"0 RSD"}},null,"Kreditna kartica",null,null,{"$f":"Zajmovi[Predviđeni\nTrošak]-Zajmovi[Stvarni\nTrošak]","v":{"v":0,"d":"0 RSD"}}]
[null,"Osiguranje",null,null,{"$f":"Prevoz[Predviđeni\nTrošak]-Prevoz[Stvarni\nTrošak]","v":{"v":0,"d":"0 RSD"}},null,"Kreditna kartica",null,null,{"$f":"Zajmovi[Predviđeni\nTrošak]-Zajmovi[Stvarni\nTrošak]","v":{"v":0,"d":"0 RSD"}}]
[null,"Vozačka dozvola",null,null,{"$f":"Prevoz[Predviđeni\nTrošak]-Prevoz[Stvarni\nTrošak]","v":{"v":0,"d":"0 RSD"}},null,"Kreditna kartica",null,null,{"$f":"Zajmovi[Predviđeni\nTrošak]-Zajmovi[Stvarni\nTrošak]","v":{"v":0,"d":"0 RSD"}}]
[null,"Gorivo",null,null,{"$f":"Prevoz[Predviđeni\nTrošak]-Prevoz[Stvarni\nTrošak]","v":{"v":0,"d":"0 RSD"}},null,"Drugo",null,null,{"$f":"Zajmovi[Predviđeni\nTrošak]-Zajmovi[Stvarni\nTrošak]","v":{"v":0,"d":"0 RSD"}}]
[null,"Održavanje",null,null,{"$f":"Prevoz[Predviđeni\nTrošak]-Prevoz[Stvarni\nTrošak]","v":{"v":0,"d":"0 RSD"}},null,"Zbir",{"$f":"SUBTOTAL(109,Zajmovi[Predviđeni\nTrošak])","v":{"v":0,"d":"0 RSD"}},{"$f":"SUBTOTAL(109,Zajmovi[Stvarni\nTrošak])","v":{"v":0,"d":"0 RSD"}},{"$f":"SUBTOTAL(109,Zajmovi[Razlika])","v":{"v":0,"d":"0 RSD"}}]
[null,"Drugo",null,null,{"$f":"Prevoz[Predviđeni\nTrošak]-Prevoz[Stvarni\nTrošak]","v":{"v":0,"d":"0 RSD"}}]
[null,"Zbir",{"$f":"SUBTOTAL(109,Prevoz[Predviđeni\nTrošak])","v":{"v":0,"d":"0 RSD"}},{"$f":"SUBTOTAL(109,Prevoz[Stvarni\nTrošak])","v":{"v":0,"d":"0 RSD"}},{"$f":"SUBTOTAL(109,Prevoz[Razlika])","v":{"v":0,"d":"0 RSD"}},null,"Zabava","Predviđeni\nTrošak","Stvarni\nTrošak","Razlika"]
[{"$nulls":6},"Video/DVD",null,null,{"$f":"Zabava[Predviđeni\nTrošak]-Zabava[Stvarni\nTrošak]","v":{"v":0,"d":"0 RSD"}}]
[null,"Osiguranje","Predviđeni\nTrošak","Stvarni\nTrošak","Razlika",null,"CD-ovi",null,null,{"$f":"Zabava[Predviđeni\nTrošak]-Zabava[Stvarni\nTrošak]","v":{"v":0,"d":"0 RSD"}}]
[null,"Kuća",null,null,{"$f":"Osiguranje[Predviđeni\nTrošak]-Osiguranje[Stvarni\nTrošak]","v":{"v":0,"d":"0 RSD"}},null,"Filmovi",null,null,{"$f":"Zabava[Predviđeni\nTrošak]-Zabava[Stvarni\nTrošak]","v":{"v":0,"d":"0 RSD"}}]
[null,"Zdravstveno",null,null,{"$f":"Osiguranje[Predviđeni\nTrošak]-Osiguranje[Stvarni\nTrošak]","v":{"v":0,"d":"0 RSD"}},null,"Koncerti",null,null,{"$f":"Zabava[Predviđeni\nTrošak]-Zabava[Stvarni\nTrošak]","v":{"v":0,"d":"0 RSD"}}]
[null,"Životno",null,null,{"$f":"Osiguranje[Predviđeni\nTrošak]-Osiguranje[Stvarni\nTrošak]","v":{"v":0,"d":"0 RSD"}},null,"Sportski događaji",null,null,{"$f":"Zabava[Predviđeni\nTrošak]-Zabava[Stvarni\nTrošak]","v":{"v":0,"d":"0 RSD"}}]
[null,"Drugo",null,null,{"$f":"Osiguranje[Predviđeni\nTrošak]-Osiguranje[Stvarni\nTrošak]","v":{"v":0,"d":"0 RSD"}},null,"Pozorište",null,null,{"$f":"Zabava[Predviđeni\nTrošak]-Zabava[Stvarni\nTrošak]","v":{"v":0,"d":"0 RSD"}}]
[null,"Zbir",{"$f":"SUBTOTAL(109,Osiguranje[Predviđeni\nTrošak])","v":{"v":0,"d":"0 RSD"}},{"$f":"SUBTOTAL(109,Osiguranje[Stvarni\nTrošak])","v":{"v":0,"d":"0 RSD"}},{"$f":"SUBTOTAL(109,Osiguranje[Razlika])","v":{"v":0,"d":"0 RSD"}},null,"Drugo",null,null,{"$f":"Zabava[Predviđeni\nTrošak]-Zabava[Stvarni\nTrošak]","v":{"v":0,"d":"0 RSD"}}]
[{"$nulls":6},"Zbir",{"$f":"SUBTOTAL(109,Zabava[Predviđeni\nTrošak])","v":{"v":0,"d":"0 RSD"}},{"$f":"SUBTOTAL(109,Zabava[Stvarni\nTrošak])","v":{"v":0,"d":"0 RSD"}},{"$f":"SUBTOTAL(109,Zabava[Razlika])","v":{"v":0,"d":"0 RSD"}}]
[null,"Hrana","Predviđeni\nTrošak","Stvarni\nTrošak","Razlika"]
[null,"Namirnice",null,null,{"$f":"Hrana[Predviđeni\nTrošak]-Hrana[Stvarni\nTrošak]","v":{"v":0,"d":"0 RSD"}},null,"Porezi","Predviđeni \nTrošak","Stvarni \nTrošak","Razlika"]
[null,"Restorani",null,null,{"$f":"Hrana[Predviđeni\nTrošak]-Hrana[Stvarni\nTrošak]","v":{"v":0,"d":"0 RSD"}},null,"Savezni",null,null,{"$f":"Porezi[Predviđeni \nTrošak]-Porezi[Stvarni \nTrošak]","v":{"v":0,"d":"0 RSD"}}]
[null,"Drugo",null,null,{"$f":"Hrana[Predviđeni\nTrošak]-Hrana[Stvarni\nTrošak]","v":{"v":0,"d":"0 RSD"}},null,"Državni",null,null,{"$f":"Porezi[Predviđeni \nTrošak]-Porezi[Stvarni \nTrošak]","v":{"v":0,"d":"0 RSD"}}]
[null,"Zbir",{"$f":"SUBTOTAL(109,Hrana[Predviđeni\nTrošak])","v":{"v":0,"d":"0 RSD"}},{"$f":"SUBTOTAL(109,Hrana[Stvarni\nTrošak])","v":{"v":0,"d":"0 RSD"}},{"$f":"SUBTOTAL(109,Hrana[Razlika])","v":{"v":0,"d":"0 RSD"}},null,"Lokalni",null,null,{"$f":"Porezi[Predviđeni \nTrošak]-Porezi[Stvarni \nTrošak]","v":{"v":0,"d":"0 RSD"}}]
[{"$nulls":6},"Drugo",null,null,{"$f":"Porezi[Predviđeni \nTrošak]-Porezi[Stvarni \nTrošak]","v":{"v":0,"d":"0 RSD"}}]
[null,"Deca","Predviđeni\nTrošak","Stvarni\nTrošak","Razlika",null,"Zbir",{"$f":"SUBTOTAL(109,Porezi[Predviđeni \nTrošak])","v":{"v":0,"d":"0 RSD"}},{"$f":"SUBTOTAL(109,Porezi[Stvarni \nTrošak])","v":{"v":0,"d":"0 RSD"}},{"$f":"SUBTOTAL(109,Porezi[Razlika])","v":{"v":0,"d":"0 RSD"}}]
[null,"Zdravstvo",null,null,{"$f":"Deca[Predviđeni\nTrošak]-Deca[Stvarni\nTrošak]","v":{"v":0,"d":"0 RSD"}}]
[null,"Odeća",null,null,{"$f":"Deca[Predviđeni\nTrošak]-Deca[Stvarni\nTrošak]","v":{"v":0,"d":"0 RSD"}},null,"Lična nega","Predviđeni\nTrošak","Stvarni\nTrošak","Razlika"]
[null,"Školovanje",null,null,{"$f":"Deca[Predviđeni\nTrošak]-Deca[Stvarni\nTrošak]","v":{"v":0,"d":"0 RSD"}},null,"Zdravstvo",null,null,{"$f":"LičnaNega[Predviđeni\nTrošak]-LičnaNega[Stvarni\nTrošak]","v":{"v":0,"d":"0 RSD"}}]
[null,"Školski pribor",null,null,{"$f":"Deca[Predviđeni\nTrošak]-Deca[Stvarni\nTrošak]","v":{"v":0,"d":"0 RSD"}},null,"Kosa/nokti",null,null,{"$f":"LičnaNega[Predviđeni\nTrošak]-LičnaNega[Stvarni\nTrošak]","v":{"v":0,"d":"0 RSD"}}]
[null,"Organizacioni dugovi ili naknade",null,null,{"$f":"Deca[Predviđeni\nTrošak]-Deca[Stvarni\nTrošak]","v":{"v":0,"d":"0 RSD"}},null,"Odeća",null,null,{"$f":"LičnaNega[Predviđeni\nTrošak]-LičnaNega[Stvarni\nTrošak]","v":{"v":0,"d":"0 RSD"}}]
[null,"Novac za ručak",null,null,{"$f":"Deca[Predviđeni\nTrošak]-Deca[Stvarni\nTrošak]","v":{"v":0,"d":"0 RSD"}},null,"Hemijsko čišćenje",null,null,{"$f":"LičnaNega[Predviđeni\nTrošak]-LičnaNega[Stvarni\nTrošak]","v":{"v":0,"d":"0 RSD"}}]
[null,"Nega deteta",null,null,{"$f":"Deca[Predviđeni\nTrošak]-Deca[Stvarni\nTrošak]","v":{"v":0,"d":"0 RSD"}},null,"Teretana",null,null,{"$f":"LičnaNega[Predviđeni\nTrošak]-LičnaNega[Stvarni\nTrošak]","v":{"v":0,"d":"0 RSD"}}]
[null,"Igračke/igre",null,null,{"$f":"Deca[Predviđeni\nTrošak]-Deca[Stvarni\nTrošak]","v":{"v":0,"d":"0 RSD"}},null,"Organizacioni dugovi/naknade",null,null,{"$f":"LičnaNega[Predviđeni\nTrošak]-LičnaNega[Stvarni\nTrošak]","v":{"v":0,"d":"0 RSD"}}]
[null,"Drugo",null,null,{"$f":"Deca[Predviđeni\nTrošak]-Deca[Stvarni\nTrošak]","v":{"v":0,"d":"0 RSD"}},null,"Drugo",null,null,{"$f":"LičnaNega[Predviđeni\nTrošak]-LičnaNega[Stvarni\nTrošak]","v":{"v":0,"d":"0 RSD"}}]
[null,"Zbir",{"$f":"SUBTOTAL(109,Deca[Predviđeni\nTrošak])","v":{"v":0,"d":"0 RSD"}},{"$f":"SUBTOTAL(109,Deca[Stvarni\nTrošak])","v":{"v":0,"d":"0 RSD"}},{"$f":"SUBTOTAL(109,Deca[Razlika])","v":{"v":0,"d":"0 RSD"}},null,"Zbir",{"$f":"SUBTOTAL(109,LičnaNega[Predviđeni\nTrošak])","v":{"v":0,"d":"0 RSD"}},{"$f":"SUBTOTAL(109,LičnaNega[Stvarni\nTrošak])","v":{"v":0,"d":"0 RSD"}},{"$f":"SUBTOTAL(109,LičnaNega[Razlika])","v":{"v":0,"d":"0 RSD"}}]
[]
[null,"Pravni_aspekti","Predviđeni\nTrošak","Stvarni\nTrošak","Razlika",null,"Ljubimci","Predviđeni\nTrošak","Stvarni\nTrošak","Razlika"]
[null,"Advokat",null,null,{"$f":"Pravni_aspekti[Predviđeni\nTrošak]-Pravni_aspekti[Stvarni\nTrošak]","v":{"v":0,"d":"0 RSD"}},null,"Hrana",null,null,{"$f":"Ljubimci[Predviđeni\nTrošak]-Ljubimci[Stvarni\nTrošak]","v":{"v":0,"d":"0 RSD"}}]
[null,"Alimentacija",null,null,{"$f":"Pravni_aspekti[Predviđeni\nTrošak]-Pravni_aspekti[Stvarni\nTrošak]","v":{"v":0,"d":"0 RSD"}},null,"Zdravstvo",null,null,{"$f":"Ljubimci[Predviđeni\nTrošak]-Ljubimci[Stvarni\nTrošak]","v":{"v":0,"d":"0 RSD"}}]
[null,"Rate",null,null,{"$f":"Pravni_aspekti[Predviđeni\nTrošak]-Pravni_aspekti[Stvarni\nTrošak]","v":{"v":0,"d":"0 RSD"}},null,"Doterivanje",null,null,{"$f":"Ljubimci[Predviđeni\nTrošak]-Ljubimci[Stvarni\nTrošak]","v":{"v":0,"d":"0 RSD"}}]
[null,"Drugo",null,null,{"$f":"Pravni_aspekti[Predviđeni\nTrošak]-Pravni_aspekti[Stvarni\nTrošak]","v":{"v":0,"d":"0 RSD"}},null,"Igračke",null,null,{"$f":"Ljubimci[Predviđeni\nTrošak]-Ljubimci[Stvarni\nTrošak]","v":{"v":0,"d":"0 RSD"}}]
[null,"Zbir",{"$f":"SUBTOTAL(109,Pravni_aspekti[Predviđeni\nTrošak])","v":{"v":0,"d":"0 RSD"}},{"$f":"SUBTOTAL(109,Pravni_aspekti[Stvarni\nTrošak])","v":{"v":0,"d":"0 RSD"}},{"$f":"SUBTOTAL(109,Pravni_aspekti[Razlika])","v":{"v":0,"d":"0 RSD"}},null,"Drugo",null,null,{"$f":"Ljubimci[Predviđeni\nTrošak]-Ljubimci[Stvarni\nTrošak]","v":{"v":0,"d":"0 RSD"}}]
[{"$nulls":6},"Zbir",{"$f":"SUBTOTAL(109,Ljubimci[Predviđeni\nTrošak])","v":{"v":0,"d":"0 RSD"}},{"$f":"SUBTOTAL(109,Ljubimci[Stvarni\nTrošak])","v":{"v":0,"d":"0 RSD"}},{"$f":"SUBTOTAL(109,Ljubimci[Razlika])","v":{"v":0,"d":"0 RSD"}}]
[null,"Štednja/investicije","Predviđeni\nTrošak","Stvarni\nTrošak","Razlika"]
[null,"Penzioni račun",null,null,{"$f":"Štednja[Predviđeni\nTrošak]-Štednja[Stvarni\nTrošak]","v":{"v":0,"d":"0 RSD"}},null,"Pokloni i donacije","Predviđeni\nTrošak","Stvarni\nTrošak","Razlika"]
[null,"Ulagački račun",null,null,{"$f":"Štednja[Predviđeni\nTrošak]-Štednja[Stvarni\nTrošak]","v":{"v":0,"d":"0 RSD"}},null,"Dobrotvorni prilog 1",null,null,{"$f":"Pokloni[Predviđeni\nTrošak]-Pokloni[Stvarni\nTrošak]","v":{"v":0,"d":"0 RSD"}}]
[null,"Fakultet",null,null,{"$f":"Štednja[Predviđeni\nTrošak]-Štednja[Stvarni\nTrošak]","v":{"v":0,"d":"0 RSD"}},null,"Dobrotvorni prilog 2",null,null,{"$f":"Pokloni[Predviđeni\nTrošak]-Pokloni[Stvarni\nTrošak]","v":{"v":0,"d":"0 RSD"}}]
[null,"Drugo",null,null,{"$f":"Štednja[Predviđeni\nTrošak]-Štednja[Stvarni\nTrošak]","v":{"v":0,"d":"0 RSD"}},null,"Dobrotvorni prilog 3",null,null,{"$f":"Pokloni[Predviđeni\nTrošak]-Pokloni[Stvarni\nTrošak]","v":{"v":0,"d":"0 RSD"}}]
[null,"Zbir",{"$f":"SUBTOTAL(109,Štednja[Predviđeni\nTrošak])","v":{"v":0,"d":"0 RSD"}},{"$f":"SUBTOTAL(109,Štednja[Stvarni\nTrošak])","v":{"v":0,"d":"0 RSD"}},{"$f":"SUBTOTAL(109,Štednja[Razlika])","v":{"v":0,"d":"0 RSD"}},null,"Zbir",{"$f":"SUBTOTAL(109,Pokloni[Predviđeni\nTrošak])","v":{"v":0,"d":"0 RSD"}},{"$f":"SUBTOTAL(109,Pokloni[Stvarni\nTrošak])","v":{"v":0,"d":"0 RSD"}},{"$f":"SUBTOTAL(109,Pokloni[Razlika])","v":{"v":0,"d":"0 RSD"}}]